[Event "FRA-chT Top 12"]
[Site "Brest"]
[Date "2018.05.26"]
[Round "1"]
[White "Zhigalko, Sergei"]
[Black "Villegas, Pierre"]
[Result "1-0"]
[ECO "B12"]
[WhiteElo "2606"]
[BlackElo "2345"]
[Annotator "ChessBase II"]
[PlyCount "79"]
[EventDate "2018.05.26"]
[EventType "team-tourn"]
[EventRounds "11"]
[EventCountry "FRA"]
[SourceTitle "EXT 2019"]
[Source "ChessBase"]
[SourceDate "2018.10.10"]
[SourceVersion "1"]
[SourceVersionDate "2018.10.10"]
[SourceQuality "1"]
[WhiteTeam "Bois Colombes"]
[BlackTeam "Cemc Monaco"]
[WhiteTeamCountry "FRA"]
[BlackTeamCountry "MNC"]
[TimeControl "40/5400+30:1800+30"]

1. e4 {[%emt 0:00:00]} c6 {[%emt 0:00:09]} 2. d4 {[%emt 0:00:00]} d5 {[%emt 0:00:04]} 3. e5 {[%emt 0:00:00]} Bf5 {[%emt 0:00:19]} 4. Nf3 {[%emt 0:00:00]} e6 {[%emt 0:00:07]} 5. Be2 {[%emt 0:00:01]} c5 {[%emt 0:00:20]} 6. Be3 {[%emt 0:00:10]} cxd4 {[%emt 0:00:23]} 7. Nxd4 {[%emt 0:00:05]} Ne7 {[%emt 0:00:06]} 8. Nd2 {[%emt 0:00:12]} Nbc6 {[%emt 0:00:33]} 9. N2f3 {[%emt 0:00:08]} Be4 {[%emt 0:00:34]} 10. O-O {[%emt 0:00:53]} Bxf3 {[%emt 0:01:19]} 11. Nxf3 {[%emt 0:00:54]} Qc7 {[%emt 0:01:15]} 12. Rc1 {[%emt 0:13:40]} Nf5 $146 {[%emt 0:10:03] Une nouveauté trouvée devant l'échiquier} (12... Rd8 13. c4 {1-0 Caruana,F (2736)-Iturrizaga Bonelli,E (2649) Moscow Aeroflot op-A 11th 2012 (3)} (13. c3)) 13. Bf4 {[%emt 0:08:54]} Be7 {[%emt 0:01:50]} 14. Bd3 {[%emt 0:01:26]} g6 {[%emt 0:16:35]} 15. c3 {[%emt 0:06:08]} h6 {[%emt 0:05:31]} 16. h3 {[%emt 0:12:43]} Nh4 {[%emt 0:06:05]} 17. Nxh4 {[%emt 0:28:02]} Bxh4 {[%emt 0:00:08]} 18. c4 {[%emt 0:00:03]} d4 {[%emt 0:13:31]} 19. Re1 {[%emt 0:02:40]} Bg5 {[%emt 0:05:23]} 20. Bxg5 {[%emt 0:02:24]} hxg5 {[%emt 0:00:05]} 21. Be4 {[%emt 0:00:02]} Rh4 {[%emt 0:07:25]} 22. Bxc6+ {[%emt 0:06:04]} Qxc6 {[%emt 0:05:43]} 23. f3 {[%emt 0:00:57]} O-O-O {[%emt 0:03:32]} 24. Qd3 {[%emt 0:00:06]} Kb8 {[%emt 0:00:59]} 25. b4 {[%emt 0:00:57]} Rf4 {[%emt 0:02:57]} 26. Rc2 {[%emt 0:00:34]} Rd7 {[%emt 0:06:12]} 27. a3 {[%emt 0:02:07]} Rh4 {[%emt 0:00:48]} 28. Ra1 {[%emt 0:03:41]} Qa4 {[%emt 0:03:59]} 29. Re2 {[%emt 0:01:34]} Rd8 {[%emt 0:04:15]} 30. Kh2 {[%emt 0:00:17]} Rdh8 {[%emt 0:00:42]} 31. Raa2 {[%emt 0:05:31]} Rd8 {[%emt 0:01:36]} 32. Kg1 {[%emt 0:01:26]} Rc8 {[%emt 0:00:50]} 33. Rac2 {[%emt 0:01:37]} a5 {[%emt 0:01:53]} 34. Rb2 {[%emt 0:00:12]} Rc7 {[%emt 0:00:48]} 35. c5 {[%emt 0:00:38]} axb4 {[%emt 0:00:32]} 36. axb4 {[%emt 0:00:32]} Qa6 {[%emt 0:00:44]} 37. Qb3 {[%emt 0:03:03]} d3 {[%emt 0:00:35]} 38. Red2 {[%emt 0:00:01]} Qa1+ $2 {[%emt 0:00:53]} (38... Rd7 $11 {[%cal Gh4d4]}) 39. Rd1 {[%emt 0:00:28]} Qa6 {[%emt 0:00:27]} 40. Rxd3 {[%emt 0:00:39]} 1-0

[Event "FRA-chT Top 12"]
[Site "Brest"]
[Date "2018.05.27"]
[Round "2"]
[White "Fressinet, Laurent"]
[Black "Zhigalko, Sergei"]
[Result "1/2-1/2"]
[ECO "E11"]
[WhiteElo "2651"]
[BlackElo "2606"]
[Annotator "ChessBase II"]
[PlyCount "35"]
[EventDate "2018.05.26"]
[EventType "team-tourn"]
[EventRounds "11"]
[EventCountry "FRA"]
[SourceTitle "EXT 2019"]
[Source "ChessBase"]
[SourceDate "2018.10.10"]
[SourceVersion "1"]
[SourceVersionDate "2018.10.10"]
[SourceQuality "1"]
[WhiteTeam "Clichy Echecs 92"]
[BlackTeam "Bois Colombes"]
[WhiteTeamCountry "FRA"]
[BlackTeamCountry "FRA"]
[TimeControl "40/5400+30:1800+30"]

1. Nf3 {[%emt 0:02:36]} Nf6 {[%emt 0:00:31]} 2. c4 {[%emt 0:00:06]} e6 {[%emt 0:00:09]} 3. g3 {[%emt 0:00:07]} d5 {[%emt 0:00:29]} 4. d4 {[%emt 0:03:14]} Bb4+ {[%emt 0:00:19]} 5. Bd2 {[%emt 0:00:20]} Be7 {[%emt 0:00:14]} 6. Bg2 {[%emt 0:00:06]} O-O {[%emt 0:00:38]} 7. O-O {[%emt 0:00:13]} c6 {[%emt 0:01:56]} 8. Qc2 {[%emt 0:00:48]} b6 {[%emt 0:00:48]} 9. Rd1 {[%emt 0:00:34]} Bb7 {[%emt 0:05:47]} 10. b3 {[%emt 0:01:11]} Nbd7 {[%emt 0:28:19]} 11. Nc3 {[%emt 0:00:44]} Qc8 {[%emt 0:02:56]} (11... Rc8 12. Bf4 c5 13. Nb5 cxd4 14. Nd6 Bxd6 15. Bxd6 Re8 16. Nxd4 Nc5 17. Bxc5 Rxc5 18. Qb2 e5 19. Nb5 Qb8 20. e3 h5 21. Qe2 a6 22. Na3 d4 23. Nc2 Bxg2 24. Kxg2 Ne4 25. Qf1 h4 26. f3 Nc3 27. Rd2 hxg3 28. hxg3 Re6 29. Qf2 Rf6 30. exd4 Ne4 31. Qe3 Nxd2 32. dxc5 Nxf3 33. cxb6 Qb7 {0-1 (33) Meier,G (2648)-Naiditsch,A (2701) Karlsruhe/Baden-Baden 2018}) 12. Bf4 {[%emt 0:09:41]} Rd8 {[%emt 0:01:58]} 13. Rac1 {[%emt 0:12:31]} Ba3 {[%emt 0:04:10]} 14. Rb1 {[%emt 0:01:26]} Bb4 $146 {[%emt 0:07:56]} (14... Bf8 15. e4 dxe4 16. Ng5 c5 17. d5 e5 18. Bc1 h6 19. Ngxe4 Nxe4 20. Bxe4 Nf6 21. Bg2 Qg4 22. Re1 Qh5 23. Bb2 Bc8 24. Qe2 Bf5 25. Qxh5 Nxh5 26. Rbd1 Bd6 27. Nb5 f6 28. Nxd6 Rxd6 29. f4 Bg4 30. fxe5 fxe5 31. Bxe5 Rd7 32. Rd3 Nf6 33. Rde3 Nh7 34. h3 Bh5 35. Be4 Ng5 36. Bf5 Rf7 37. g4 Rxf5 38. gxf5 Nf3+ 39. Rxf3 Bxf3 40. Kf2 Bh5 41. Rg1 g6 42. fxg6 Rf8+ 43. Ke3 Rf3+ 44. Ke4 {Kreisl,R (2432)-Van Hoolandt,P (2236) Tromsoe 2014 1-0}) 15. Qb2 {[%emt 0:06:21]} dxc4 {[%emt 0:07:09]} 16. bxc4 {[%emt 0:01:43]} Bxc3 {[%emt 0:00:04]} 17. Qxc3 {[%emt 0:00:15]} c5 {[%emt 0:00:02]} (17... Ne4) 18. dxc5 {[%emt 0:07:06]} 1/2-1/2

[Event "FRA-chT Top 12"]
[Site "Brest"]
[Date "2018.05.28"]
[Round "3"]
[White "Zhigalko, Sergei"]
[Black "Bailet, Pierre"]
[Result "1/2-1/2"]
[ECO "B31"]
[WhiteElo "2606"]
[BlackElo "2501"]
[Annotator "ChessBase II"]
[PlyCount "43"]
[EventDate "2018.05.26"]
[EventType "team-tourn"]
[EventRounds "11"]
[EventCountry "FRA"]
[SourceTitle "EXT 2019"]
[Source "ChessBase"]
[SourceDate "2018.10.10"]
[SourceVersion "1"]
[SourceVersionDate "2018.10.10"]
[SourceQuality "1"]
[WhiteTeam "Bois Colombes"]
[BlackTeam "Vandoeuvre"]
[WhiteTeamCountry "FRA"]
[BlackTeamCountry "FRA"]
[TimeControl "40/5400+30:1800+30"]

1. e4 {[%emt 0:00:00]} c5 {[%emt 0:00:36]} 2. Nf3 {[%emt 0:00:00]} Nc6 {[%emt 0:00:13]} 3. Nc3 {[%emt 0:01:22]} g6 {[%emt 0:02:04]} 4. Bb5 {[%emt 0:03:43]} Bg7 {[%emt 0:01:32]} 5. O-O {[%emt 0:00:14]} e5 {[%emt 0:00:55]} 6. a3 {[%emt 0:25:34]} (6. d3 Nge7 7. Bc4 O-O 8. a3 d6 9. h3 h6 10. b4 Kh7 11. bxc5 dxc5 12. Rb1 b6 13. Nd5 Be6 14. Nxe7 Qxe7 15. Bd5 Qd6 16. c4 Rab8 17. Bb2 Bd7 18. Bc3 Ne7 19. Qd2 g5 20. Rfe1 Ng6 21. Nh2 Nf4 22. Re3 h5 23. Qd1 Qg6 24. Rg3 f6 25. Bd2 Bh6 26. a4 Qe8 27. Ra1 a5 28. Nf1 Rd8 29. Ra3 Bc8 30. Ne3 Rd6 31. Rf3 Bd7 32. g4 Rh8 33. Rg3 Bf8 34. Nf5 Bxf5 35. gxf5 h4 {Le,Q (2737)-Dubov,D (2694) Caleta 2018 1-0}) 6... Nge7 {[%emt 0:05:19]} 7. b4 {[%emt 0:02:35]} d6 {[%emt 0:04:50]} 8. Bc4 {[%emt 0:01:14]} O-O {[%emt 0:04:26]} 9. Rb1 {[%emt 0:00:53]} Nd4 $146 {[%emt 0:08:56]} (9... Rb8 10. Nd5 b5 11. Ba2 {1-0 (11) Rasik,V (2469)-Voloshin,L (2494) Czechia 2005}) 10. bxc5 {[%emt 0:01:10]} dxc5 {[%emt 0:00:23]} 11. Nxd4 {[%emt 0:17:30]} cxd4 {[%emt 0:02:17]} 12. Ne2 {[%emt 0:08:10]} Qc7 {[%emt 0:14:54]} 13. d3 {[%emt 0:00:24]} b6 {[%emt 0:02:43]} 14. Bd2 {[%emt 0:02:52]} Bb7 {[%emt 0:07:36]} 15. Bb4 {[%emt 0:02:13]} Rae8 {[%emt 0:04:35]} (15... Rfe8) 16. c3 {[%emt 0:13:07]} Bxe4 {[%emt 0:07:14]} 17. dxe4 {[%emt 0:02:06]} Qxc4 {[%emt 0:00:09]} 18. cxd4 {[%emt 0:00:03]} exd4 {[%emt 0:01:46]} 19. Rc1 {[%emt 0:06:03]} Qe6 {[%emt 0:01:26]} 20. Nxd4 {[%emt 0:00:20]} Bxd4 {[%emt 0:02:20]} 21. Qxd4 {[%emt 0:01:23]} Nc6 {[%emt 0:00:07]} 22. Rxc6 {[%emt 0:02:43]} 1/2-1/2

[Event "FRA-chT Top 12"]
[Site "Brest"]
[Date "2018.05.29"]
[Round "4"]
[White "Fedorchuk, Sergey A"]
[Black "Zhigalko, Sergei"]
[Result "1/2-1/2"]
[ECO "C84"]
[WhiteElo "2637"]
[BlackElo "2606"]
[Annotator "ChessBase II"]
[PlyCount "53"]
[EventDate "2018.05.26"]
[EventType "team-tourn"]
[EventRounds "11"]
[EventCountry "FRA"]
[SourceTitle "EXT 2019"]
[Source "ChessBase"]
[SourceDate "2018.10.10"]
[SourceVersion "1"]
[SourceVersionDate "2018.10.10"]
[SourceQuality "1"]
[WhiteTeam "Evry Grand Roque"]
[BlackTeam "Bois Colombes"]
[WhiteTeamCountry "FRA"]
[BlackTeamCountry "FRA"]
[TimeControl "40/5400+30:1800+30"]

1. e4 {[%emt 0:00:00]} e5 {[%emt 0:00:05]} 2. Nf3 {[%emt 0:00:45]} Nc6 {[%emt 0:00:06]} 3. Bb5 {[%emt 0:00:51]} a6 {[%emt 0:00:08]} 4. Ba4 {[%emt 0:00:50]} Nf6 {[%emt 0:00:17]} 5. O-O {[%emt 0:00:35]} Be7 {[%emt 0:00:18]} 6. d3 {[%emt 0:01:59]} b5 {[%emt 0:01:00]} 7. Bb3 {[%emt 0:05:00]} d6 {[%emt 0:01:26]} 8. a3 {[%emt 0:02:25]} O-O {[%emt 0:01:03]} 9. Nc3 {[%emt 0:04:25]} Bg4 {[%emt 0:00:39]} 10. Be3 {[%emt 0:03:49]} Nd4 {[%emt 0:01:04]} 11. Bxd4 {[%emt 0:00:57]} exd4 {[%emt 0:00:07]} 12. Nd5 {[%emt 0:01:56]} Nd7 {[%emt 0:01:40]} 13. h3 {[%emt 0:02:11]} Bxf3 {[%emt 0:01:08]} 14. Qxf3 {[%emt 0:00:08]} a5 {[%emt 0:02:11]} 15. Nf4 {[%emt 0:13:48]} a4 {[%emt 0:01:19]} 16. Ba2 {[%emt 0:00:11]} Rb8 {[%emt 0:05:53]} 17. Qd1 {[%emt 0:03:36]} c6 {[%emt 0:07:26]} 18. Ne2 {[%emt 0:03:54]} Qb6 {[%emt 0:00:42]} 19. Ng3 {[%emt 0:03:35]} g6 {[%emt 0:13:47]} 20. f4 {[%emt 0:04:21]} b4 {[%emt 0:10:32]} 21. axb4 {[%emt 0:02:15]} (21. f5 $143 b3 22. cxb3 axb3 23. Bb1 {[%csl Ra1,Rb2]} Bg5 $132) 21... Qxb4 {[%emt 0:00:07]} 22. Rb1 {[%emt 0:20:12]} Kh8 {[%emt 0:06:27]} 23. Qg4 {[%emt 0:03:26]} Nf6 {[%emt 0:01:30]} 24. Qe2 {[%emt 0:04:25]} Nd7 {[%emt 0:07:54]} 25. Qg4 {[%emt 0:00:51]} Nf6 {[%emt 0:00:41]} 26. Qe2 {[%emt 0:00:07]} Nd7 {[%emt 0:00:11]} 27. Qg4 {[%emt 0:00:07]} 1/2-1/2

[Event "FRA-chT Top 12"]
[Site "Brest"]
[Date "2018.05.30"]
[Round "5"]
[White "Zhigalko, Sergei"]
[Black "Malakhov, Vladimir"]
[Result "1/2-1/2"]
[ECO "C67"]
[WhiteElo "2606"]
[BlackElo "2691"]
[Annotator "ChessBase II"]
[PlyCount "62"]
[EventDate "2018.05.26"]
[EventType "team-tourn"]
[EventRounds "11"]
[EventCountry "FRA"]
[SourceTitle "EXT 2019"]
[Source "ChessBase"]
[SourceDate "2018.10.10"]
[SourceVersion "1"]
[SourceVersionDate "2018.10.10"]
[SourceQuality "1"]
[WhiteTeam "Bois Colombes"]
[BlackTeam "Tremblay en France"]
[WhiteTeamCountry "FRA"]
[BlackTeamCountry "FRA"]
[TimeControl "40/5400+30:1800+30"]

1. e4 {[%emt 0:00:00]} e5 {[%emt 0:00:22]} 2. Nf3 {[%emt 0:00:00]} Nc6 {[%emt 0:00:10]} 3. Bb5 {[%emt 0:00:04]} Nf6 {[%emt 0:00:15]} 4. O-O {[%emt 0:00:56]} Nxe4 {[%emt 0:00:12]} 5. Re1 {[%emt 0:00:50]} Nd6 {[%emt 0:00:58]} 6. Nxe5 {[%emt 0:00:30]} Be7 {[%emt 0:00:05]} 7. Bf1 {[%emt 0:00:26]} Nxe5 {[%emt 0:00:32]} 8. Rxe5 {[%emt 0:00:06]} O-O {[%emt 0:00:09]} 9. d4 {[%emt 0:00:28]} Bf6 {[%emt 0:00:18]} 10. Re1 {[%emt 0:00:10]} Nf5 {[%emt 0:00:17]} 11. c3 {[%emt 0:00:40]} d5 {[%emt 0:00:10]} 12. Bd3 {[%emt 0:00:14]} (12. Bf4 c6 13. Nd2 Nh4 14. Bd3 Bf5 15. Bxf5 Nxf5 16. Nf3 Qd7 17. Ne5 Bxe5 18. Rxe5 f6 19. Re1 Rfe8 20. Qd3 Rxe1+ 21. Rxe1 Re8 22. Re2 Rxe2 23. Qxe2 Kf7 24. Qh5+ Kg8 25. Qe2 Kf7 26. Qh5+ Kg8 27. Qe2 {½-½ (27) Adams,M (2715)-Aronian,L (2805) London 2017}) 12... c6 {[%emt 0:03:57]} 13. Nd2 {[%emt 0:00:08]} Re8 $146 {[%emt 0:07:43]} (13... Nh4 14. Qc2 Ng6 15. Nf3 Qd6 16. h4 Nxh4 17. Bxh7+ Kh8 18. Nxh4 Bxh4 19. Bf5 g6 20. Bxc8 Rfxc8 21. Qd2 Kg8 22. Qh6 Bf6 23. Bf4 Qf8 24. Qh2 Re8 25. Bh6 Rxe1+ 26. Rxe1 Re8 27. Re3 Rxe3 28. Bxe3 a6 29. Qc7 Qe7 30. Qc8+ Kg7 31. g3 g5 32. b4 Qe4 33. Qxb7 Qb1+ 34. Kh2 Qh7+ 35. Kg2 Qe4+ 36. Kg1 Qb1+ 37. Kh2 Qh7+ 38. Kg1 Qb1+ {½-½ (38) Safarli,E (2653)-Mastrovasilis,D (2589) Warsaw 2013}) 14. Rxe8+ {[%emt 0:04:04]} Qxe8 {[%emt 0:01:23]} 15. Nf3 {[%emt 0:00:24]} Nh4 {[%emt 0:02:46]} 16. Nxh4 {[%emt 0:01:29]} Bxh4 {[%emt 0:00:30]} 17. Bf4 {[%emt 0:00:30]} Bf6 {[%emt 0:00:30]} 18. Qd2 {[%emt 0:00:30]} Be6 {[%emt 0:00:30]} 19. Re1 {[%emt 0:00:30]} Qd7 {[%emt 0:00:30]} 20. Bg5 {[%emt 0:00:30]} Qd8 {[%emt 0:00:30]} 21. Bxf6 {[%emt 0:00:30]} Qxf6 {[%emt 0:00:30]} 22. Re5 {[%emt 0:00:30]} h6 {[%emt 0:00:30]} 23. Qe3 $14 {[%emt 0:00:30]} Kf8 {[%emt 0:00:30]} 24. h3 {[%emt 0:00:30]} (24. f4 Re8 25. f5 Bd7 $11 26. Rxe8+ Bxe8 27. Qe5 Qg5) 24... b6 {[%emt 0:00:30]} 25. Bc2 {[%emt 0:00:30]} Bd7 {[%emt 0:00:30]} 26. Qg3 {[%emt 0:00:30]} Re8 {[%emt 0:00:30]} 27. Rxe8+ {[%emt 0:00:30]} Bxe8 {[%emt 0:00:30]} 28. Qb8 {[%emt 0:00:30]} Qe7 {[%emt 0:00:30]} 29. Bd3 {[%emt 0:00:30]} b5 {[%emt 0:00:30]} 30. b4 {[%emt 0:00:30]} Qe1+ {[%emt 0:00:30]} 31. Bf1 {[%emt 0:00:30]} f6 {[%emt 0:00:30]} 1/2-1/2

[Event "FRA-chT Top 12"]
[Site "Brest"]
[Date "2018.06.02"]
[Round "8"]
[White "Chabanon, Jean Luc"]
[Black "Zhigalko, Sergei"]
[Result "0-1"]
[ECO "A17"]
[WhiteElo "2450"]
[BlackElo "2606"]
[Annotator "ChessBase II"]
[PlyCount "96"]
[EventDate "2018.05.26"]
[EventType "team-tourn"]
[EventRounds "11"]
[EventCountry "FRA"]
[SourceTitle "EXT 2019"]
[Source "ChessBase"]
[SourceDate "2018.10.10"]
[SourceVersion "1"]
[SourceVersionDate "2018.10.10"]
[SourceQuality "1"]
[WhiteTeam "T H F Saint-Quentin"]
[BlackTeam "Bois Colombes"]
[WhiteTeamCountry "FRA"]
[BlackTeamCountry "FRA"]
[TimeControl "40/5400+30:1800+30"]

1. Nf3 {[%emt 0:01:22]} Nf6 {[%emt 0:00:13]} 2. c4 {[%emt 0:00:09]} e6 {[%emt 0:00:05]} 3. Nc3 {[%emt 0:01:46]} Bb4 {[%emt 0:00:06]} 4. Qc2 {[%emt 0:00:18]} O-O {[%emt 0:00:14]} 5. a3 {[%emt 0:00:18]} Bxc3 {[%emt 0:00:09]} 6. Qxc3 {[%emt 0:00:08]} d6 {[%emt 0:00:04]} 7. b4 {[%emt 0:05:34]} e5 {[%emt 0:00:16]} (7... a5 8. Bb2 e5 9. e3 b6 10. Be2 axb4 11. axb4 Rxa1+ 12. Bxa1 c5 13. b5 Re8 14. d3 Nbd7 15. O-O Bb7 16. Bb2 Nf8 17. Ra1 Qb8 18. Nh4 Ng6 19. Nxg6 hxg6 20. Bf1 d5 21. d4 Ne4 22. Qc2 dxc4 23. Bxc4 cxd4 24. exd4 Rc8 25. Qe2 exd4 26. Bxd4 Qd6 27. Be3 Qb4 28. Bd3 Nc5 29. h3 Nxd3 {½-½ (29) Cheparinov,I (2687)-Almasi,Z (2688) Varadero 2016}) 8. Bb2 {[%emt 0:10:25]} Re8 {[%emt 0:07:48]} 9. d3 {[%emt 0:00:43]} Bg4 {[%emt 0:00:33]} 10. e3 {[%emt 0:01:43]} Bxf3 {[%emt 0:06:27]} 11. gxf3 {[%emt 0:02:38]} Nbd7 {[%emt 0:00:03]} 12. Bh3 $146 {[%emt 0:09:03]} (12. Be2 c5 13. O-O d5 14. cxd5 Nxd5 15. Qb3 N5b6 16. Rfc1 Rc8 17. Qd1 Qh4 18. bxc5 Nxc5 19. Rab1 Rc6 20. Qf1 Rh6 21. h3 Nbd7 22. Bc3 b6 23. Rb4 Qe7 24. Rg4 Nf6 25. Rg5 Rg6 26. Rxg6 hxg6 27. Bb4 Nfd7 28. Qd1 a5 29. Bc3 Ne6 30. Qa4 Ndc5 {½-½ (30) Jakovljevic,V (2433)-Kuljasevic,D (2579) Malinska 2013}) 12... Nf8 {[%emt 0:00:30]} 13. O-O-O {[%emt 0:00:30]} a5 $1 {[%emt 0:00:30]} 14. d4 {[%emt 0:00:30]} (14. b5 $5 {Plus solide} N8d7 {[%cal Gd7c5]} 15. d4 exd4 16. exd4 $13 {[%csl Gb2,Gh3][%cal Gh1g1]}) 14... axb4 $132 {[%emt 0:00:30]} 15. axb4 {[%emt 0:00:30]} e4 {[%emt 0:00:30]} 16. Bg2 {[%emt 0:00:30]} d5 {[%emt 0:00:30]} 17. fxe4 Nxe4 {[%emt 0:25:10]} 18. Bxe4 {[%emt 0:36:00]} dxe4 {[%emt 0:00:15]} 19. d5 {[%emt 0:10:58]} f6 {[%emt 0:00:07]} 20. c5 {[%emt 0:06:21]} Qd7 {[%emt 0:02:23]} 21. d6 {[%emt 0:03:57]} cxd6 {[%emt 0:17:27]} 22. Rxd6 {[%emt 0:00:05]} Qxd6 $1 {[%emt 0:18:45]} 23. cxd6 {[%emt 0:00:02]} Rac8 {[%emt 0:00:08]} 24. Rd1 {[%emt 0:01:44]} Rxc3+ {[%emt 0:00:22]} 25. Bxc3 {[%emt 0:00:01]} Nd7 {[%emt 0:00:05]} 26. Rd4 {[%emt 0:01:05]} Kf7 {[%emt 0:09:07]} 27. Rc4 {[%emt 0:00:46]} b5 {[%emt 0:00:05]} 28. Rc6 {[%emt 0:01:34]} Ra8 {[%emt 0:00:36]} 29. Rc7 {[%emt 0:03:59]} Ke6 {[%emt 0:00:04]} 30. Rb7 {[%emt 0:00:11]} Rb8 {[%emt 0:00:17]} 31. Ra7 {[%emt 0:00:11]} Rb6 {[%emt 0:03:25]} 32. Bd4 {[%emt 0:00:36]} Rxd6 {[%emt 0:00:08]} 33. Rb7 {[%emt 0:00:11]} Rd5 {[%emt 0:00:03]} 34. Kd2 {[%emt 0:00:40]} Rh5 {[%emt 0:04:07]} 35. Ke2 {[%emt 0:00:03]} Kd6 {[%emt 0:00:19]} 36. Kf1 {[%emt 0:01:54]} Kc6 {[%emt 0:00:50]} 37. Ra7 {[%emt 0:00:05]} Rxh2 {[%emt 0:00:22]} 38. Ra6+ {[%emt 0:00:09]} Kd5 {[%emt 0:01:09]} 39. Ra7 {[%emt 0:00:31]} Ke6 {[%emt 0:00:47]} 40. Ra6+ {[%emt 0:00:56]} Ke7 {[%emt 0:31:00]} 41. Ra7 {[%emt 0:06:35]} Rh5 {[%emt 0:00:00]} 42. Bc5+ {[%emt 0:03:38]} Ke6 {[%emt 0:00:00]} 43. Ra6+ {[%emt 0:00:31]} Kf5 {[%emt 0:00:00]} 44. Ra5 {[%emt 0:15:55]} Kg4 {[%emt 0:00:00]} 45. Rxb5 {[%emt 0:01:28]} Kf3 {[%emt 0:00:00]} 46. Ke1 {[%emt 0:00:18]} Rd5 {[%emt 0:00:00]} 47. Ra5 {[%emt 0:03:24]} Ne5 {[%emt 0:00:00]} 48. Bd4 {[%emt 0:00:41]} Nd3+ {[%emt 0:00:00]} 0-1

[Event "FRA-chT Top 12"]
[Site "Brest"]
[Date "2018.06.03"]
[Round "9"]
[White "Hera, Imre Jr"]
[Black "Zhigalko, Sergei"]
[Result "1/2-1/2"]
[ECO "A11"]
[WhiteElo "2620"]
[BlackElo "2606"]
[PlyCount "23"]
[EventDate "2018.05.26"]
[EventType "team-tourn"]
[EventRounds "11"]
[EventCountry "FRA"]
[SourceTitle "EXT 2019"]
[Source "ChessBase"]
[SourceDate "2018.10.10"]
[SourceVersion "1"]
[SourceVersionDate "2018.10.10"]
[SourceQuality "1"]
[WhiteTeam "Grasse Echecs"]
[BlackTeam "Bois Colombes"]
[WhiteTeamCountry "FRA"]
[BlackTeamCountry "FRA"]
[TimeControl "40/5400+30:1800+30"]

1. Nf3 {[%emt 0:00:04]} d5 {[%emt 0:00:04]} 2. g3 {[%emt 0:00:09]} c6 {[%emt 0:00:05]} 3. Bg2 {[%emt 0:00:08]} Bg4 {[%emt 0:00:05]} 4. c4 {[%emt 0:00:13]} e6 {[%emt 0:00:33]} 5. cxd5 {[%emt 0:00:31]} Bxf3 {[%emt 0:00:13]} 6. Bxf3 {[%emt 0:00:07]} cxd5 {[%emt 0:00:12]} 7. O-O {[%emt 0:00:07]} Nf6 {[%emt 0:01:27]} 8. Nc3 {[%emt 0:00:17]} Nc6 {[%emt 0:00:19]} 9. Bg2 {[%emt 0:00:07]} Be7 {[%emt 0:01:44]} 10. d3 {[%emt 0:00:06]} O-O {[%emt 0:00:47]} 11. a3 {[%emt 0:00:07]} Rc8 {[%emt 0:01:22]} 12. Bd2 {[%emt 0:00:13]} 1/2-1/2

[Event "FRA-chT Top 12"]
[Site "Brest"]
[Date "2018.06.04"]
[Round "10"]
[White "Balogh, Csaba"]
[Black "Zhigalko, Sergei"]
[Result "1/2-1/2"]
[ECO "B33"]
[WhiteElo "2628"]
[BlackElo "2606"]
[PlyCount "32"]
[EventDate "2018.05.26"]
[EventType "team-tourn"]
[EventRounds "11"]
[EventCountry "FRA"]
[SourceTitle "EXT 2019"]
[Source "ChessBase"]
[SourceDate "2018.10.10"]
[SourceVersion "1"]
[SourceVersionDate "2018.10.10"]
[SourceQuality "1"]
[WhiteTeam "Metz Fischer"]
[BlackTeam "Bois Colombes"]
[WhiteTeamCountry "FRA"]
[BlackTeamCountry "FRA"]
[TimeControl "40/5400+30:1800+30"]

1. e4 {[%emt 0:00:16]} c5 {[%emt 0:00:04]} 2. Nf3 {[%emt 0:00:08]} Nc6 {[%emt 0:00:04]} 3. d4 {[%emt 0:02:34]} cxd4 {[%emt 0:00:04]} 4. Nxd4 {[%emt 0:00:05]} Nf6 {[%emt 0:00:04]} 5. Nc3 {[%emt 0:00:09]} e5 {[%emt 0:00:04]} 6. Ndb5 {[%emt 0:00:29]} d6 {[%emt 0:00:06]} 7. Bg5 {[%emt 0:00:38]} a6 {[%emt 0:00:04]} 8. Na3 {[%emt 0:00:08]} b5 {[%emt 0:00:06]} 9. Nd5 {[%emt 0:00:12]} Be7 {[%emt 0:00:09]} 10. Bxf6 {[%emt 0:00:34]} Bxf6 {[%emt 0:00:05]} 11. c4 {[%emt 0:00:26]} b4 {[%emt 0:00:25]} 12. Nc2 {[%emt 0:00:09]} O-O {[%emt 0:00:33]} 13. g3 {[%emt 0:01:05]} a5 {[%emt 0:00:19]} 14. h4 Be6 {[%emt 0:04:15]} 15. Bh3 {[%emt 0:22:09]} a4 {[%emt 0:01:23]} 16. Nce3 {[%emt 0:21:11]} Nd4 {[%emt 0:44:13] Une nulle théorique} 1/2-1/2